[Event "Late-Titled-Tuesday-Blitz-February-06-2024"]
[Site "Chess.com"]
[Date "2024.02.06"]
[Round "7"]
[White "betta2004"]
[Black "Seochesspie"]
[Result "1/2-1/2"]
[WhiteElo "2564"]
[BlackElo "2789"]
[TimeControl "180+1"]
[EndTime "15:19:07 PST"]
[Termination "Game drawn by stalemate"]

1. e4 {[%clk 0:03:00.9]} 1... e6 {[%clk 0:02:58.9]} 2. d4 {[%clk 0:02:56.8]}
2... d5 {[%clk 0:02:59.8]} 3. Bd3 {[%clk 0:02:57.5]} 3... dxe4 {[%clk
0:02:59.5]} 4. Bxe4 {[%clk 0:02:58.4]} 4... Nf6 {[%clk 0:02:58.7]} 5. Bf3 {[%clk
0:02:56.9]} 5... c5 {[%clk 0:02:59]} 6. Ne2 {[%clk 0:02:55.9]} 6... Nc6 {[%clk
0:02:58.7]} 7. Be3 {[%clk 0:02:54.1]} 7... Nd5 {[%clk 0:02:56.7]} 8. Bxd5 {[%clk
0:02:52.3]} 8... Qxd5 {[%clk 0:02:53.7]} 9. Nbc3 {[%clk 0:02:52.9]} 9... Qc4
{[%clk 0:02:30.8]} 10. b3 {[%clk 0:02:28.1]} 10... Qb4 {[%clk 0:02:30.5]} 11. a3
{[%clk 0:02:27.6]} 11... Qa5 {[%clk 0:02:28.3]} 12. dxc5 {[%clk 0:02:27.8]}
12... a6 {[%clk 0:02:06.7]} 13. b4 {[%clk 0:02:27.8]} 13... Qc7 {[%clk 0:02:07]}
14. Bf4 {[%clk 0:02:26.1]} 14... e5 {[%clk 0:02:06.9]} 15. Nd5 {[%clk
0:02:26.4]} 15... Qd8 {[%clk 0:02:06]} 16. Nb6 {[%clk 0:02:23.1]} 16... Qxd1+
{[%clk 0:02:05]} 17. Rxd1 {[%clk 0:02:22.6]} 17... Rb8 {[%clk 0:02:05.4]} 18.
Be3 {[%clk 0:02:17.4]} 18... Bf5 {[%clk 0:02:04.9]} 19. Nc3 {[%clk 0:02:10.6]}
19... Bxc2 {[%clk 0:02:00.8]} 20. Rd2 {[%clk 0:02:10.7]} 20... Bf5 {[%clk
0:01:54.9]} 21. Ncd5 {[%clk 0:02:09.9]} 21... f6 {[%clk 0:01:55.5]} 22. O-O
{[%clk 0:02:01.5]} 22... Be7 {[%clk 0:01:48.9]} 23. a4 {[%clk 0:01:58.6]} 23...
Bd8 {[%clk 0:01:44]} 24. b5 {[%clk 0:01:56.7]} 24... axb5 {[%clk 0:01:44]} 25.
axb5 {[%clk 0:01:57.6]} 25... Ne7 {[%clk 0:01:37.3]} 26. Nxe7 {[%clk 0:01:46.9]}
26... Kxe7 {[%clk 0:01:37.3]} 27. Nd5+ {[%clk 0:01:41.2]} 27... Kf7 {[%clk
0:01:33]} 28. c6 {[%clk 0:01:35.9]} 28... bxc6 {[%clk 0:01:33.9]} 29. bxc6
{[%clk 0:01:36.8]} 29... Rc8 {[%clk 0:01:23.1]} 30. Rc1 {[%clk 0:01:36]} 30...
Be6 {[%clk 0:01:21]} 31. c7 {[%clk 0:01:18.7]} 31... Bxd5 {[%clk 0:01:17.6]} 32.
Rxd5 {[%clk 0:01:19.6]} 32... Be7 {[%clk 0:01:18]} 33. Bb6 {[%clk 0:01:12.5]}
33... Ke6 {[%clk 0:01:14.8]} 34. Rdd1 {[%clk 0:01:09.6]} 34... Ra8 {[%clk
0:01:04.2]} 35. g4 {[%clk 0:01:05.3]} 35... Rhc8 {[%clk 0:01:02]} 36. Kg2 {[%clk
0:01:02.6]} 36... g6 {[%clk 0:00:54.1]} 37. Rc3 {[%clk 0:00:58.2]} 37... f5
{[%clk 0:00:49.2]} 38. gxf5+ {[%clk 0:00:55.5]} 38... gxf5 {[%clk 0:00:49.2]}
39. Rcd3 {[%clk 0:00:56.1]} 39... Ra6 {[%clk 0:00:38.7]} 40. Rd8 {[%clk
0:00:52.3]} 40... Bxd8 {[%clk 0:00:38.7]} 41. cxd8=Q {[%clk 0:00:52.1]} 41...
Rxd8 {[%clk 0:00:39.1]} 42. Bxd8 {[%clk 0:00:51.6]} 42... f4 {[%clk 0:00:39.4]}
43. Bc7 {[%clk 0:00:44.4]} 43... Kf5 {[%clk 0:00:38.6]} 44. Rd5 {[%clk 0:00:41]}
44... Re6 {[%clk 0:00:38.4]} 45. Kf3 {[%clk 0:00:41]} 45... Re7 {[%clk 0:00:35]}
46. Bb8 {[%clk 0:00:40.5]} 46... Re8 {[%clk 0:00:35]} 47. Bd6 {[%clk 0:00:37.8]}
47... Re6 {[%clk 0:00:34.4]} 48. h3 {[%clk 0:00:37.4]} 48... Re8 {[%clk
0:00:34]} 49. Ra5 {[%clk 0:00:34.1]} 49... Re6 {[%clk 0:00:33]} 50. Bc7 {[%clk
0:00:31]} 50... Re7 {[%clk 0:00:33.1]} 51. Bb8 {[%clk 0:00:21.8]} 51... Re8
{[%clk 0:00:33.2]} 52. Rb5 {[%clk 0:00:22.2]} 52... Re7 {[%clk 0:00:30.1]} 53.
h4 {[%clk 0:00:21.8]} 53... Re8 {[%clk 0:00:22.6]} 54. h5 {[%clk 0:00:14.6]}
54... Re7 {[%clk 0:00:21.8]} 55. h6 {[%clk 0:00:14.5]} 55... Re8 {[%clk
0:00:22]} 56. Rxe5+ {[%clk 0:00:06.7]} 56... Rxe5 {[%clk 0:00:21.6]} 57. Bxe5
{[%clk 0:00:07.6]} 57... Kxe5 {[%clk 0:00:21.9]} 58. Kg4 {[%clk 0:00:08.5]}
58... Ke4 {[%clk 0:00:20.3]} 59. Kg5 {[%clk 0:00:08.5]} 59... f3 {[%clk
0:00:04.7]} 60. Kg4 {[%clk 0:00:08.6]} 60... Ke5 {[%clk 0:00:05.1]} 61. Kxf3
{[%clk 0:00:09.1]} 61... Kf5 {[%clk 0:00:05]} 62. Ke3 {[%clk 0:00:09.1]} 62...
Kg5 {[%clk 0:00:05.2]} 63. Ke4 {[%clk 0:00:09.3]} 63... Kxh6 {[%clk 0:00:06.1]}
64. Ke5 {[%clk 0:00:07.9]} 64... Kg7 {[%clk 0:00:06.4]} 65. f4 {[%clk
0:00:04.6]} 65... h5 {[%clk 0:00:06.3]} 66. Kf5 {[%clk 0:00:04.8]} 66... h4
{[%clk 0:00:05.1]} 67. Kg4 {[%clk 0:00:05.7]} 67... h3 {[%clk 0:00:05.5]} 68.
Kxh3 {[%clk 0:00:06.2]} 68... Kg6 {[%clk 0:00:06]} 69. Kg4 {[%clk 0:00:07.1]}
69... Kf6 {[%clk 0:00:06.4]} 70. f5 {[%clk 0:00:07.9]} 70... Kf7 {[%clk
0:00:06.8]} 71. Kg5 {[%clk 0:00:08.7]} 71... Kg7 {[%clk 0:00:07.3]} 72. f6+
{[%clk 0:00:09.3]} 72... Kf7 {[%clk 0:00:07.7]} 73. Kf5 {[%clk 0:00:10.2]} 73...
Kf8 {[%clk 0:00:08.1]} 74. Ke6 {[%clk 0:00:11.1]} 74... Ke8 {[%clk 0:00:08.5]}
75. f7+ {[%clk 0:00:11.8]} 75... Kf8 {[%clk 0:00:08.8]} 76. Kf6 {[%clk
0:00:12.7]} 1/2-1/2

[Event "Late-Titled-Tuesday-Blitz-February-06-2024"]
[Site "Chess.com"]
[Date "2024.02.06"]
[Round "7"]
[White "Eloist"]
[Black "edgarhay012"]
[Result "1/2-1/2"]
[WhiteElo "2440"]
[BlackElo "2587"]
[TimeControl "180+1"]
[EndTime "15:19:11 PST"]
[Termination "Game drawn by stalemate"]

1. e4 {[%clk 0:03:00.9]} 1... Nf6 {[%clk 0:03:00.9]} 2. e5 {[%clk 0:03:00.6]}
2... Nd5 {[%clk 0:03:00.2]} 3. d4 {[%clk 0:03:00]} 3... d6 {[%clk 0:03:00.6]} 4.
Nf3 {[%clk 0:02:59.2]} 4... Bg4 {[%clk 0:02:59.7]} 5. Be2 {[%clk 0:02:58.8]}
5... e6 {[%clk 0:02:59.1]} 6. c4 {[%clk 0:02:58.4]} 6... Nb6 {[%clk 0:02:58.7]}
7. h3 {[%clk 0:02:58.1]} 7... Bh5 {[%clk 0:02:58.5]} 8. exd6 {[%clk 0:02:56.2]}
8... cxd6 {[%clk 0:02:58.6]} 9. Nc3 {[%clk 0:02:56.3]} 9... Nc6 {[%clk
0:02:58.7]} 10. d5 {[%clk 0:02:47.8]} 10... exd5 {[%clk 0:02:57.9]} 11. Nxd5
{[%clk 0:02:46.8]} 11... Nxd5 {[%clk 0:02:55.6]} 12. Qxd5 {[%clk 0:02:44.5]}
12... Bg6 {[%clk 0:02:55.6]} 13. O-O {[%clk 0:02:34.2]} 13... Be7 {[%clk
0:02:55.5]} 14. Bf4 {[%clk 0:02:26.9]} 14... O-O {[%clk 0:02:55.3]} 15. Rad1
{[%clk 0:02:24.7]} 15... Qb6 {[%clk 0:02:53.1]} 16. Qb5 {[%clk 0:02:15.5]} 16...
Rfd8 {[%clk 0:02:23.5]} 17. Rd2 {[%clk 0:01:57.8]} 17... Bf6 {[%clk 0:01:56.5]}
18. Rfd1 {[%clk 0:01:54.9]} 18... Re8 {[%clk 0:01:18.7]} 19. Bxd6 {[%clk
0:01:48.6]} 19... Rad8 {[%clk 0:01:18.4]} 20. Qxb6 {[%clk 0:01:34.9]} 20... axb6
{[%clk 0:01:19.3]} 21. Bc7 {[%clk 0:01:34.4]} 21... Ra8 {[%clk 0:00:56.6]} 22.
a3 {[%clk 0:01:25.2]} 22... Na5 {[%clk 0:00:47]} 23. Bxb6 {[%clk 0:01:06.9]}
23... Nb3 {[%clk 0:00:46.1]} 24. c5 {[%clk 0:00:33.9]} 24... Nxd2 {[%clk
0:00:38]} 25. Rxd2 {[%clk 0:00:33.7]} 25... Be4 {[%clk 0:00:14.8]} 26. Bb5
{[%clk 0:00:32.8]} 26... Re7 {[%clk 0:00:09.5]} 27. a4 {[%clk 0:00:29.4]} 27...
Bc6 {[%clk 0:00:02.6]} 28. Bxc6 {[%clk 0:00:27.7]} 28... bxc6 {[%clk 0:00:03.5]}
29. a5 {[%clk 0:00:28.1]} 29... Re4 {[%clk 0:00:03.8]} 30. Rd6 {[%clk
0:00:26.9]} 30... Rb4 {[%clk 0:00:03.7]} 31. Rxc6 {[%clk 0:00:26.3]} 31... Rxb2
{[%clk 0:00:03.9]} 32. g4 {[%clk 0:00:25.7]} 32... h6 {[%clk 0:00:04]} 33. Kg2
{[%clk 0:00:20.5]} 33... Kh7 {[%clk 0:00:04.1]} 34. Rc7 {[%clk 0:00:16.4]} 34...
Bc3 {[%clk 0:00:01.7]} 35. Rxf7 {[%clk 0:00:14.4]} 35... Bxa5 {[%clk 0:00:02.3]}
36. Bxa5 {[%clk 0:00:13.4]} 36... Rxa5 {[%clk 0:00:03.2]} 37. c6 {[%clk
0:00:13]} 37... Rc5 {[%clk 0:00:03.5]} 38. c7 {[%clk 0:00:12.9]} 38... Rbc2
{[%clk 0:00:04.1]} 39. Nd4 {[%clk 0:00:12.5]} 39... Rxc7 {[%clk 0:00:04.5]} 40.
Rxc7 {[%clk 0:00:08.2]} 40... Rxc7 {[%clk 0:00:05.4]} 41. h4 {[%clk 0:00:08]}
41... Kg6 {[%clk 0:00:05.5]} 42. f3 {[%clk 0:00:07.8]} 42... Rd7 {[%clk
0:00:04.9]} 43. Nf5 {[%clk 0:00:07.4]} 43... Ra7 {[%clk 0:00:04.9]} 44. h5+
{[%clk 0:00:07.3]} 44... Kg5 {[%clk 0:00:05]} 45. Kg3 {[%clk 0:00:07.7]} 45...
Rb7 {[%clk 0:00:03.4]} 46. Nd4 {[%clk 0:00:07.5]} 46... Rd7 {[%clk 0:00:02.5]}
47. Nf5 {[%clk 0:00:07.2]} 47... Kf6 {[%clk 0:00:03]} 48. Nh4 {[%clk 0:00:06.8]}
48... Ra7 {[%clk 0:00:03.5]} 49. Nf5 {[%clk 0:00:07.1]} 49... Ra5 {[%clk
0:00:03.8]} 50. Nh4 {[%clk 0:00:07.4]} 50... Rb5 {[%clk 0:00:04.4]} 51. Ng6
{[%clk 0:00:07.3]} 51... Rb3 {[%clk 0:00:04]} 52. Nh4 {[%clk 0:00:07.6]} 52...
Rb1 {[%clk 0:00:04.4]} 53. Ng6 {[%clk 0:00:07.9]} 53... Rg1+ {[%clk 0:00:02.8]}
54. Kf2 {[%clk 0:00:07.4]} 54... Ra1 {[%clk 0:00:03.7]} 55. Nh4 {[%clk
0:00:07.6]} 55... Kg5 {[%clk 0:00:04.2]} 56. Nf5 {[%clk 0:00:07.8]} 56... Kf4
{[%clk 0:00:03.5]} 57. Nxg7 {[%clk 0:00:05.2]} 57... Ra2+ {[%clk 0:00:04.1]} 58.
Ke1 {[%clk 0:00:04.9]} 58... Ke3 {[%clk 0:00:04.4]} 59. Nf5+ {[%clk 0:00:04.2]}
59... Kxf3 {[%clk 0:00:04.3]} 60. Nxh6 {[%clk 0:00:04.4]} 60... Ra6 {[%clk
0:00:02.7]} 61. g5 {[%clk 0:00:04.5]} 61... Kf4 {[%clk 0:00:03.2]} 62. g6 {[%clk
0:00:04.6]} 62... Ra7 {[%clk 0:00:02.9]} 63. Nf7 {[%clk 0:00:03.7]} 63... Re7+
{[%clk 0:00:01.3]} 64. Kf2 {[%clk 0:00:01.7]} 64... Re8 {[%clk 0:00:01.8]} 65.
g7 {[%clk 0:00:01.1]} 65... Kf5 {[%clk 0:00:02.7]} 66. Nh6+ {[%clk 0:00:01.4]}
66... Kf6 {[%clk 0:00:02.8]} 67. g8=Q {[%clk 0:00:02.1]} 67... Rxg8 {[%clk
0:00:03.5]} 68. Nxg8+ {[%clk 0:00:02.5]} 68... Kg7 {[%clk 0:00:04.4]} 69. h6+
{[%clk 0:00:02.6]} 69... Kh7 {[%clk 0:00:04.7]} 70. Kg3 {[%clk 0:00:03]} 70...
Kxg8 {[%clk 0:00:05.2]} 71. Kh4 {[%clk 0:00:03.3]} 71... Kh8 {[%clk 0:00:06.1]}
72. Kh5 {[%clk 0:00:03.8]} 72... Kg8 {[%clk 0:00:07]} 73. Kg6 {[%clk 0:00:04.4]}
73... Kh8 {[%clk 0:00:07.9]} 74. h7 {[%clk 0:00:04.8]} 1/2-1/2

[Event "Late-Titled-Tuesday-Blitz-February-06-2024"]
[Site "Chess.com"]
[Date "2024.02.06"]
[Round "7"]
[White "JoakimVonAnd"]
[Black "Hrant_ChessMood"]
[Result "1/2-1/2"]
[WhiteElo "2668"]
[BlackElo "2918"]
[TimeControl "180+1"]
[EndTime "15:19:14 PST"]
[Termination "Game drawn by repetition"]

1. d4 {[%clk 0:03:00.9]} 1... Nf6 {[%clk 0:02:57.4]} 2. Nf3 {[%clk 0:03:00.3]}
2... g6 {[%clk 0:02:57.4]} 3. Bf4 {[%clk 0:02:57.2]} 3... Bg7 {[%clk 0:02:53]}
4. e3 {[%clk 0:02:57.4]} 4... O-O {[%clk 0:02:52.6]} 5. h3 {[%clk 0:02:57.9]}
5... c5 {[%clk 0:02:51]} 6. c3 {[%clk 0:02:58.1]} 6... Qb6 {[%clk 0:02:48.6]} 7.
Qb3 {[%clk 0:02:57.6]} 7... d6 {[%clk 0:02:48.5]} 8. Nbd2 {[%clk 0:02:57.9]}
8... Be6 {[%clk 0:02:47.2]} 9. Bc4 {[%clk 0:02:58.1]} 9... d5 {[%clk 0:02:41.1]}
10. Be2 {[%clk 0:02:56.6]} 10... Nbd7 {[%clk 0:02:36.9]} 11. O-O {[%clk
0:02:55.5]} 11... c4 {[%clk 0:02:34.4]} 12. Qc2 {[%clk 0:02:45.3]} 12... Bf5
{[%clk 0:02:34]} 13. Qc1 {[%clk 0:02:45.9]} 13... Qc6 {[%clk 0:02:26.3]} 14. Bd1
{[%clk 0:02:43.9]} 14... b5 {[%clk 0:02:25.3]} 15. Bc2 {[%clk 0:02:40.9]} 15...
Bxc2 {[%clk 0:02:24.2]} 16. Qxc2 {[%clk 0:02:41]} 16... a5 {[%clk 0:02:21.5]}
17. Rfe1 {[%clk 0:02:40.6]} 17... e6 {[%clk 0:02:14.6]} 18. e4 {[%clk
0:02:39.1]} 18... Nxe4 {[%clk 0:02:13]} 19. Nxe4 {[%clk 0:02:39.1]} 19... dxe4
{[%clk 0:02:13.9]} 20. Rxe4 {[%clk 0:02:35]} 20... Nf6 {[%clk 0:02:12.9]} 21.
Ree1 {[%clk 0:02:30]} 21... Nd5 {[%clk 0:02:13.1]} 22. Be5 {[%clk 0:02:30.6]}
22... f6 {[%clk 0:02:12.3]} 23. Bg3 {[%clk 0:02:30.1]} 23... Rfe8 {[%clk
0:02:11.9]} 24. Re2 {[%clk 0:02:29.9]} 24... b4 {[%clk 0:02:10.8]} 25. Rae1
{[%clk 0:02:28.9]} 25... a4 {[%clk 0:02:06.1]} 26. a3 {[%clk 0:02:00.2]} 26...
bxa3 {[%clk 0:02:02.6]} 27. bxa3 {[%clk 0:02:01.1]} 27... Bf8 {[%clk 0:02:03.3]}
28. Qb2 {[%clk 0:01:24.5]} 28... Ra7 {[%clk 0:01:57.7]} 29. Nd2 {[%clk
0:01:24.4]} 29... Rb7 {[%clk 0:01:55.5]} 30. Qc1 {[%clk 0:01:24.8]} 30... Qa6
{[%clk 0:01:40.8]} 31. Ne4 {[%clk 0:01:23]} 31... Rb3 {[%clk 0:01:35.8]} 32. Bh4
{[%clk 0:01:20.6]} 32... Bxa3 {[%clk 0:01:28.2]} 33. Qh6 {[%clk 0:01:14.8]}
33... Bf8 {[%clk 0:01:25.9]} 34. Qd2 {[%clk 0:01:11]} 34... Bg7 {[%clk
0:01:25.9]} 35. Nc5 {[%clk 0:01:10.3]} 35... Qa5 {[%clk 0:01:20.3]} 36. Rxe6
{[%clk 0:01:00]} 36... Rxe6 {[%clk 0:01:18.9]} 37. Rxe6 {[%clk 0:01:00.9]} 37...
Bf8 {[%clk 0:00:48.1]} 38. Nd7 {[%clk 0:00:47.8]} 38... Rb7 {[%clk 0:00:25.7]}
39. Nxf8 {[%clk 0:00:41.5]} 39... a3 {[%clk 0:00:16.2]} 40. Qh6 {[%clk 0:00:24]}
40... a2 {[%clk 0:00:12.3]} 41. Nd7 {[%clk 0:00:20.6]} 41... a1=Q+ {[%clk
0:00:12.1]} 42. Kh2 {[%clk 0:00:19.9]} 42... Qc7+ {[%clk 0:00:12.2]} 43. Ne5
{[%clk 0:00:12.8]} 43... Qc8 {[%clk 0:00:08.4]} 44. Nxg6 {[%clk 0:00:11]} 44...
hxg6 {[%clk 0:00:08.7]} 45. Qxg6+ {[%clk 0:00:11]} 45... Rg7 {[%clk 0:00:09.4]}
46. Re8+ {[%clk 0:00:11.5]} 46... Qxe8 {[%clk 0:00:05]} 47. Qxe8+ {[%clk
0:00:12.4]} 47... Kh7 {[%clk 0:00:05.9]} 48. Qh5+ {[%clk 0:00:12.6]} 48... Kg8
{[%clk 0:00:06.1]} 49. Qe8+ {[%clk 0:00:13]} 49... Kh7 {[%clk 0:00:06.1]} 50.
Qh5+ {[%clk 0:00:13.3]} 50... Kg8 {[%clk 0:00:05.7]} 51. Qxd5+ {[%clk
0:00:13.9]} 51... Kh8 {[%clk 0:00:04]} 52. Qh5+ {[%clk 0:00:13.2]} 52... Kg8
{[%clk 0:00:04.1]} 53. Qe8+ {[%clk 0:00:12.7]} 53... Kh7 {[%clk 0:00:04.6]} 54.
Qh5+ {[%clk 0:00:13.1]} 54... Kg8 {[%clk 0:00:04.7]} 55. Bxf6 {[%clk 0:00:13.8]}
55... Qxc3 {[%clk 0:00:02.3]} 56. Bxg7 {[%clk 0:00:13.5]} 56... Kxg7 {[%clk
0:00:02.6]} 57. Qe5+ {[%clk 0:00:13.8]} 57... Kf7 {[%clk 0:00:03.2]} 58. Qf5+
{[%clk 0:00:13.6]} 58... Ke7 {[%clk 0:00:03.7]} 59. d5 {[%clk 0:00:14.4]} 59...
Qd4 {[%clk 0:00:01.9]} 60. Qe6+ {[%clk 0:00:14.5]} 60... Kd8 {[%clk 0:00:02.4]}
61. d6 {[%clk 0:00:14.8]} 61... Qf4+ {[%clk 0:00:02.3]} 62. Kg1 {[%clk
0:00:08.4]} 62... Qc1+ {[%clk 0:00:02.2]} 63. Kh2 {[%clk 0:00:08.8]} 63... Qf4+
{[%clk 0:00:03.1]} 64. Kg1 {[%clk 0:00:08.7]} 64... Qc1+ {[%clk 0:00:02.6]} 65.
Kh2 {[%clk 0:00:08.7]} 65... Qf4+ {[%clk 0:00:03]} 1/2-1/2

[Event "Late-Titled-Tuesday-Blitz-February-06-2024"]
[Site "Chess.com"]
[Date "2024.02.06"]
[Round "7"]
[White "lucliasco"]
[Black "igorkovalenko"]
[Result "0-1"]
[WhiteElo "2875"]
[BlackElo "3007"]
[TimeControl "180+1"]
[EndTime "15:19:21 PST"]
[Termination "igorkovalenko won on time"]

1. e4 {[%clk 0:03:00.9]} 1... d5 {[%clk 0:02:56.2]} 2. Nc3 {[%clk 0:03:01]} 2...
dxe4 {[%clk 0:02:46.1]} 3. Nxe4 {[%clk 0:03:00.5]} 3... Nd7 {[%clk 0:02:46.7]}
4. Nf3 {[%clk 0:02:59.7]} 4... Ngf6 {[%clk 0:02:47.6]} 5. Nxf6+ {[%clk
0:02:58.4]} 5... Nxf6 {[%clk 0:02:48.5]} 6. d4 {[%clk 0:02:58.3]} 6... Bg4
{[%clk 0:02:46.2]} 7. c3 {[%clk 0:02:53.3]} 7... e6 {[%clk 0:02:44.3]} 8. h3
{[%clk 0:02:53.5]} 8... Bh5 {[%clk 0:02:31.8]} 9. g4 {[%clk 0:02:52.9]} 9... Bg6
{[%clk 0:02:31.9]} 10. Bg2 {[%clk 0:02:53.8]} 10... Bd6 {[%clk 0:02:31.1]} 11.
O-O {[%clk 0:02:52]} 11... c6 {[%clk 0:02:31.3]} 12. Ne5 {[%clk 0:02:49.5]}
12... Bxe5 {[%clk 0:02:18.4]} 13. dxe5 {[%clk 0:02:48.7]} 13... Qxd1 {[%clk
0:02:19.1]} 14. Rxd1 {[%clk 0:02:49.5]} 14... Nd7 {[%clk 0:02:19.5]} 15. f4
{[%clk 0:02:48.7]} 15... h5 {[%clk 0:02:17.6]} 16. Be3 {[%clk 0:02:46.7]} 16...
hxg4 {[%clk 0:02:10.6]} 17. hxg4 {[%clk 0:02:47.6]} 17... a6 {[%clk 0:02:05.6]}
18. a4 {[%clk 0:02:45.6]} 18... O-O-O {[%clk 0:01:56.4]} 19. a5 {[%clk
0:02:42.1]} 19... Bc2 {[%clk 0:01:29.8]} 20. Rd2 {[%clk 0:02:33.9]} 20... Bb3
{[%clk 0:01:30.1]} 21. Kf2 {[%clk 0:02:34.1]} 21... g5 {[%clk 0:01:26.6]} 22.
fxg5 {[%clk 0:02:09.7]} 22... Nxe5 {[%clk 0:01:25.3]} 23. Rxd8+ {[%clk
0:02:10.6]} 23... Rxd8 {[%clk 0:01:24.7]} 24. Bd4 {[%clk 0:02:11.5]} 24... Nd3+
{[%clk 0:01:05.2]} 25. Kg3 {[%clk 0:01:47.7]} 25... e5 {[%clk 0:01:03.6]} 26.
Bb6 {[%clk 0:01:40.3]} 26... Rg8 {[%clk 0:01:03.3]} 27. Rf1 {[%clk 0:01:34.9]}
27... Rxg5 {[%clk 0:00:57.9]} 28. Be4 {[%clk 0:01:34.5]} 28... Nf4 {[%clk
0:00:55.2]} 29. Bf5+ {[%clk 0:01:32.5]} 29... Kb8 {[%clk 0:00:33.9]} 30. Bc5
{[%clk 0:01:25.6]} 30... Kc7 {[%clk 0:00:31.3]} 31. Be7 {[%clk 0:01:24]} 31...
Rg8 {[%clk 0:00:30.9]} 32. Re1 {[%clk 0:01:14.6]} 32... f6 {[%clk 0:00:23.3]}
33. Kf3 {[%clk 0:00:55.8]} 33... Nd5 {[%clk 0:00:23.1]} 34. Ba3 {[%clk
0:00:56.3]} 34... Rh8 {[%clk 0:00:23.3]} 35. Be6 {[%clk 0:00:53.7]} 35... Rh3+
{[%clk 0:00:18.2]} 36. Kf2 {[%clk 0:00:49.5]} 36... Rh2+ {[%clk 0:00:17.8]} 37.
Kg3 {[%clk 0:00:47.3]} 37... Rh8 {[%clk 0:00:18.1]} 38. Rf1 {[%clk 0:00:38.7]}
38... Bc4 {[%clk 0:00:16.9]} 39. Rf5 {[%clk 0:00:31.9]} 39... Rh6 {[%clk
0:00:12.6]} 40. b3 {[%clk 0:00:29.5]} 40... Bd3 {[%clk 0:00:11.9]} 41. Rh5
{[%clk 0:00:27.1]} 41... Rxh5 {[%clk 0:00:11.7]} 42. gxh5 {[%clk 0:00:27.5]}
42... Nf4 {[%clk 0:00:12]} 43. Bf7 {[%clk 0:00:25.6]} 43... Kd7 {[%clk
0:00:12.5]} 44. h6 {[%clk 0:00:25.4]} 44... Bh7 {[%clk 0:00:12.1]} 45. Kh4
{[%clk 0:00:25.1]} 45... Ne6 {[%clk 0:00:11.4]} 46. Bh5 {[%clk 0:00:22.9]} 46...
Nf4 {[%clk 0:00:10.9]} 47. Bf7 {[%clk 0:00:23.2]} 47... Ne6 {[%clk 0:00:11]} 48.
Kg3 {[%clk 0:00:22.1]} 48... Ng5 {[%clk 0:00:11]} 49. Bh5 {[%clk 0:00:15.4]}
49... Ke6 {[%clk 0:00:11.1]} 50. Kh4 {[%clk 0:00:13.7]} 50... Ne4 {[%clk
0:00:10.4]} 51. Bb4 {[%clk 0:00:14.4]} 51... c5 {[%clk 0:00:10.2]} 52. Ba3
{[%clk 0:00:12.9]} 52... Nxc3 {[%clk 0:00:09.4]} 53. Bxc5 {[%clk 0:00:13.4]}
53... Ne4 {[%clk 0:00:09.5]} 54. Bf8 {[%clk 0:00:12.2]} 54... Nd6 {[%clk
0:00:09]} 55. b4 {[%clk 0:00:11.3]} 55... Nf7 {[%clk 0:00:07.7]} 56. Bg4+ {[%clk
0:00:09.9]} 56... f5 {[%clk 0:00:08]} 57. Bd1 {[%clk 0:00:08.1]} 57... Kf6
{[%clk 0:00:06.4]} 58. Bb3 {[%clk 0:00:07]} 58... Ng5 {[%clk 0:00:06.7]} 59.
Bg7+ {[%clk 0:00:04.7]} 59... Kg6 {[%clk 0:00:07.1]} 60. Bd5 {[%clk 0:00:04.9]}
60... e4 {[%clk 0:00:07]} 61. Bxb7 {[%clk 0:00:03.9]} 61... f4 {[%clk
0:00:04.9]} 62. Bxa6 {[%clk 0:00:04.3]} 62... Bg8 {[%clk 0:00:04.9]} 63. Kg4
{[%clk 0:00:03.8]} 63... f3 {[%clk 0:00:04.2]} 64. Kg3 {[%clk 0:00:04.5]} 64...
Bd5 {[%clk 0:00:02.6]} 65. Bb5 {[%clk 0:00:02.9]} 65... e3 {[%clk 0:00:02.9]}
66. Be8+ {[%clk 0:00:03.4]} 66... Kh7 {[%clk 0:00:03.1]} 67. Bb5 {[%clk
0:00:03.9]} 67... f2 {[%clk 0:00:02.9]} 68. Bd3+ {[%clk 0:00:02.1]} 68... Be4
{[%clk 0:00:03.2]} 69. Be2 {[%clk 0:00:02.4]} 69... Bf3 {[%clk 0:00:02.9]} 70.
Bd3+ {[%clk 0:00:02.4]} 70... Be4 {[%clk 0:00:03.5]} 71. Bf1 {[%clk 0:00:02.7]}
71... Nf3 {[%clk 0:00:03.1]} 72. Bc3 {[%clk 0:00:01.6]} 72... Nd2 {[%clk
0:00:03.2]} 0-1